fUSD/lending_fUSD_20260605
["ID","MTS","AMOUNT","RATE_DAILY","PERIOD"]
[424122987,1780603837000,-3913.93873835,0.000168,6]
[424122979,1780603837000,-200.0,0.00016783,2]
[424122976,1780603837000,-150.0,0.00016712,2]
[424122978,1780603837000,-163.6,0.00016783,2]
[424122982,1780603837000,-808.65898511,0.00016786,2]
[424122983,1780603837000,-885.86331061,0.00016786,2]
[424122981,1780603837000,-2305.47770428,0.00016786,2]
[424122985,1780603837000,-800.0,0.000168,6]
[424122986,1780603837000,-2970.63275294,0.000168,6]
[424122984,1780603837000,-300.0,0.00016786,2]
[424122977,1780603837000,-238.42480492,0.00016763,7]
[424123002,1780603838000,-82408.3981,0.00016937,2]
[424123003,1780603838000,-254.76861624,0.00016999,2]
[424123004,1780603838000,-13452.67581502,0.00016999,2]
[424123001,1780603838000,-5997.7219,0.00016937,2]
[424123008,1780603838000,-552.13,0.00017036,2]
[424123007,1780603838000,-552.13,0.00017036,2]
[424123009,1780603838000,-552.13,0.00017036,2]
[424123010,1780603838000,-552.13,0.00017036,2]
[424122999,1780603838000,-250.0,0.0001693,2]
[424123017,1780603838000,-500.0,0.00017036,2]
[424123018,1780603838000,-500.0,0.00017036,2]
[424123000,1780603838000,-158.25046004,0.00016936,2]
[424122994,1780603838000,-150.0,0.00016869,2]
[424122996,1780603838000,-1000.0,0.000169,6]
[424122997,1780603838000,-18200.0,0.000169,6]
[424123011,1780603838000,-552.13,0.00017036,2]
[424123006,1780603838000,-150.0,0.00017027,2]
[424123005,1780603838000,-150.0,0.00017027,2]
[424122995,1780603838000,-1680.0,0.00016893,2]
[424122991,1780603838000,-1147.35787864,0.00016837,2]
[424122989,1780603838000,-6729.52411861,0.000168,6]
[424122992,1780603838000,-2514.8831,0.00016837,2]
[424122993,1780603838000,-150.0,0.00016869,2]
[424122990,1780603838000,-5668.83832136,0.00016837,2]
[424122988,1780603838000,-885.9043901,0.000168,6]
[424122998,1780603838000,-150.0,0.00016909,2]
[424123012,1780603838000,-552.13,0.00017036,2]
[424123019,1780603838000,-500.0,0.00017036,2]
[424123016,1780603838000,-552.13,0.00017036,2]
[424123046,1780603838000,-201.17996536,0.00017036,2]
[424123048,1780603838000,-1676915.71891098,0.00017037,2]
[424123053,1780603838000,-1567.25207162,0.00017037,2]
[424123043,1780603838000,-500.0,0.00017036,2]
[424123042,1780603838000,-500.0,0.00017036,2]
[424123038,1780603838000,-500.0,0.00017036,2]
[424123035,1780603838000,-500.0,0.00017036,2]
[424123040,1780603838000,-150.0,0.00017036,2]
[424123034,1780603838000,-510.27174573,0.00017036,2]
[424123026,1780603838000,-632.91,0.00017036,2]
[424123030,1780603838000,-632.91,0.00017036,2]
[424123031,1780603838000,-632.91,0.00017036,2]
[424123025,1780603838000,-632.91,0.00017036,2]
[424123027,1780603838000,-632.91,0.00017036,2]
[424123023,1780603838000,-500.0,0.00017036,2]
[424123028,1780603838000,-632.91,0.00017036,2]
[424123029,1780603838000,-632.91,0.00017036,2]
[424123021,1780603838000,-500.0,0.00017036,2]
[424123024,1780603838000,-632.91,0.00017036,2]
[424123032,1780603838000,-632.91,0.00017036,2]
[424123033,1780603838000,-632.91,0.00017036,2]
[424123022,1780603838000,-500.0,0.00017036,2]
[424123015,1780603838000,-552.13,0.00017036,2]
[424123020,1780603838000,-500.0,0.00017036,2]
[424123013,1780603838000,-552.13,0.00017036,2]
[424123014,1780603838000,-552.13,0.00017036,2]
[424123151,1780603841000,-501.38933398,0.00016081,2]
[424123153,1780603841000,-2249.98702241,0.00017037,2]
[424123154,1780603841000,-7248.08365883,0.00017037,2]
[424123152,1780603841000,-443.940666,0.00017037,2]
[424123169,1780603842000,-152.0,0.00014246,2]
[424123171,1780603842000,-12.4671945,0.00017037,2]
[424123166,1780603842000,-152.0,0.00014228,2]
[424123172,1780603842000,-731.98133661,0.00017037,2]
[424123179,1780603843000,-5358.0,0.00017037,2]
[424123176,1780603843000,-1108.86570249,0.00017037,2]
[424123177,1780603843000,-379.43999998,0.00017037,2]
[424123175,1780603843000,-1434.43257261,0.00017037,2]
[424123174,1780603843000,-627.79401988,0.00017037,2]
[424123173,1780603843000,-804.8152909,0.00017037,2]
[424123209,1780603845000,-53958.4169974,0.00017099,2]
[424123207,1780603845000,-458.0,0.00017037,2]
[424123206,1780603845000,-801117.22155319,0.00017037,2]
[424123204,1780603845000,-500.0,0.00017036,2]
[424123205,1780603845000,-272.37506811,0.00017036,2]
[424123201,1780603845000,-500.0,0.00017036,2]
[424123213,1780603845000,-150.0,0.00017185,2]
[424123202,1780603845000,-500.0,0.00017036,2]
[424123212,1780603845000,-170.5,0.00017137,2]
[424123203,1780603845000,-500.0,0.00017036,2]
[424123210,1780603845000,-19446.244033,0.00017137,2]
[424123211,1780603845000,-3198.9532509,0.00017137,2]
[424123222,1780603845000,-935.0,0.0001725,2]
[424123214,1780603845000,-150.0,0.00017185,2]
[424123225,1780603845000,-151.14101961,0.00017342,2]
[424123223,1780603845000,-1500.0,0.00017321,2]
[424123221,1780603845000,-258.31659589,0.00017238,7]
[424123224,1780603845000,-150.0,0.00017342,2]
[424123220,1780603845000,-150.0,0.00017238,7]
[424123208,1780603845000,-1337.1636234,0.00017061,2]
[424123218,1780603845000,-150.0,0.00017238,7]
[424123216,1780603845000,-150.0,0.00017238,7]
[424123217,1780603845000,-150.0,0.00017238,7]
[424123219,1780603845000,-150.0,0.00017238,7]
[424123215,1780603845000,-187.21,0.00017222,2]
[424123226,1780603846000,-150.0,0.00017342,2]
[424123237,1780603846000,-632.91,0.00017357,2]
[424123236,1780603846000,-632.91,0.00017357,2]
[424123232,1780603846000,-552.13,0.00017357,2]
[424123235,1780603846000,-552.13,0.00017357,2]
[424123230,1780603846000,-552.13,0.00017357,2]
[424123233,1780603846000,-552.13,0.00017357,2]
[424123231,1780603846000,-552.13,0.00017357,2]
[424123240,1780603846000,-632.91,0.00017357,2]
[424123239,1780603846000,-632.91,0.00017357,2]
[424123227,1780603846000,-150.0,0.00017342,2]
[424123228,1780603846000,-150.0,0.00017342,2]
[424123234,1780603846000,-552.13,0.00017357,2]
[424123229,1780603846000,-150.0,0.00017342,2]
[424123243,1780603846000,-1634.79999985,0.00017358,2]
[424123238,1780603846000,-632.91,0.00017357,2]
[424123251,1780603846000,-9424.99999995,0.00017358,2]
[424123253,1780603846000,-2517.90145884,0.00017358,2]
[424123252,1780603846000,-96564.6495,0.00017358,2]
[424123250,1780603846000,-10865.87849996,0.00017358,2]
[424123249,1780603846000,-12434.91377022,0.00017358,2]
[424123241,1780603846000,-632.91,0.00017357,2]
[424123242,1780603846000,-248241.15971937,0.00017358,2]
[424123247,1780603846000,-10991.42158947,0.00017358,2]
[424123246,1780603846000,-1583.96465714,0.00017358,2]
[424123245,1780603846000,-9433.41636287,0.00017358,2]
[424123248,1780603846000,-6074.28207003,0.00017358,2]
[424123244,1780603846000,-33400.0,0.00017358,2]
[424123259,1780603849000,152.0,0.00030127,120]
[424123261,1780604121000,-447.0,0.00015585,2]
[424123262,1780604174000,-152.0,0.00014485,2]
[424123263,1780604227000,-250.0,0.00015035,2]
[424123264,1780604230000,357.99,0.00028785,120]
[424123266,1780604281000,-166.66,0.00014676,2]
[424123267,1780604321000,300.0,0.000144,5]
[424123269,1780604334000,600.0,0.000145,5]
[424123268,1780604334000,-166.66,0.00014984,2]
[424123270,1780604335000,1000.0,0.000146,5]
[424123271,1780604335000,1300.0,0.000147,5]
[424123272,1780604335000,1600.0,0.000148,5]
[424123273,1780604336000,300.0,0.000149,5]
[424123274,1780604388000,-169.84574416,0.00014965,2]
[424123275,1780604441000,-328.0,0.00014964,2]
[424123276,1780604480000,494.00663288,0.00011966,2]
[424123278,1780604495000,-938.90576268,0.00014165,2]
[424123279,1780604522000,334.73018826,0.00015,3]
[424123281,1780604523000,1280.0,0.0003013,120]
[424123280,1780604523000,478.0,0.0003013,120]
[424123282,1780604530000,271.65083919,0.000107,2]
[424123284,1780604548000,-150.0,0.00014069,2]
[424123288,1780604549000,3341.55340119,0.000107,2]
[424123286,1780604549000,3341.55340119,0.000107,2]
[424123287,1780604549000,3341.55340119,0.000107,2]
[424123290,1780604549000,3341.55340119,0.000107,2]
[424123289,1780604549000,3341.55340119,0.000107,2]
[424123292,1780604549000,3341.55340119,0.000107,2]
[424123293,1780604549000,3341.55340119,0.000107,2]
[424123294,1780604549000,71000.0,0.000107,2]
[424123285,1780604549000,2339.68936208,0.000107,2]
[424123291,1780604549000,3341.55340119,0.000107,2]
[424123295,1780604549000,40000.0,0.000107,2]
[424123296,1780604582000,1600.0,0.0003013,120]
[424123297,1780604588000,500.0,0.00015,3]
[424123299,1780604601000,166.94603765,0.00015,3]
[424123298,1780604601000,-264.97603302,9.9e-05,2]
[424123300,1780604652000,500.0,0.00015,3]
[424123301,1780604654000,400.0,0.00015,3]
[424123302,1780604671000,183.35,0.00028767,120]
[424123303,1780604678000,454.17693194,0.00014984,7]
[424123304,1780604694000,1000.0,0.000139,5]
[424123305,1780604696000,2000.0,0.000144,5]
[424123306,1780604698000,3100.0,0.000145,5]
[424123307,1780604700000,4100.0,0.000146,5]
[424123308,1780604702000,5200.0,0.000147,5]
[424123309,1780604704000,1000.0,0.000148,5]
[424123310,1780604706000,1000.0,0.000149,5]
[424123312,1780604718000,371.60373393,0.00015,3]
[424123313,1780604745000,2000.0,0.00030137,120]
[424123318,1780604748000,-150.0,9.603e-05,2]
[424123314,1780604748000,-321.2685031,9.296e-05,2]
[424123315,1780604748000,-492.36374063,9.296e-05,2]
[424123316,1780604748000,-58784.0,9.519e-05,2]
[424123317,1780604748000,-6189.19,9.556e-05,2]
[424123319,1780604748000,-4473.78,9.641e-05,2]
[424123320,1780604748000,-389.05633091,9.9e-05,2]
[424123321,1780604748000,-418.0,9.998e-05,2]
[424123323,1780604748000,-583.59983833,0.0001,2]
[424123322,1780604748000,-151.2952,9.999e-05,2]
[424123324,1780604748000,-627.794057,0.00010045,2]
[424123337,1780604749000,-939.589,0.00010486,2]
[424123338,1780604749000,-195.591,0.00010486,2]
[424123336,1780604749000,-418.0,0.00010394,2]
[424123334,1780604749000,-3523.7,0.00010318,2]
[424123330,1780604749000,-150.0,0.00010096,2]
[424123331,1780604749000,-418.0,0.00010097,2]
[424123329,1780604749000,-150.0,0.00010096,2]
[424123332,1780604749000,-418.0,0.00010196,2]
[424123340,1780604749000,-193.0,0.00010563,2]
[424123325,1780604749000,-300.0,0.00010095,2]
[424123326,1780604749000,-1200.0,0.00010095,2]
[424123328,1780604749000,-500.0,0.00010096,2]
[424123327,1780604749000,-300.0,0.00010095,2]
[424123333,1780604749000,-418.0,0.00010295,2]
[424123342,1780604749000,-3523.7,0.00010576,2]
[424123335,1780604749000,-500.0,0.0001037,2]
[424123343,1780604749000,-418.0,0.00010592,2]
[424123356,1780604749000,-500.0,0.00010918,2]
[424123354,1780604749000,-422.0,0.00010889,2]
[424123355,1780604749000,-12395.63967199,0.000109,2]
[424123351,1780604749000,-371.17983156,0.000107,2]
[424123353,1780604749000,-3523.7,0.00010834,2]
[424123352,1780604749000,-418.0,0.0001079,2]
[424123349,1780604749000,-304.17216844,0.000107,2]
[424123350,1780604749000,-1400.52537883,0.000107,2]
[424123348,1780604749000,-536065.5214276,0.000107,2]
[424123345,1780604749000,-500.0,0.00010644,2]
[424123339,1780604749000,-418.0,0.00010493,2]
[424123344,1780604749000,-198.6,0.00010592,2]
[424123341,1780604749000,-150.57175261,0.00010563,2]
[424123357,1780604749000,-11049.78311539,0.00010973,2]
[424123347,1780604749000,-150.0,0.00010699,2]
[424123346,1780604749000,-418.0,0.00010691,2]
[424123362,1780604763000,-500.0,0.00011192,2]
[424123361,1780604763000,-1680.0,0.00011105,2]
[424123358,1780604763000,-3523.7,0.00011092,2]
[424123360,1780604763000,-420.0,0.00011103,2]
[424123359,1780604763000,-270.0,0.00011103,2]
[424123363,1780604763000,-1206.67898361,0.00011214,2]
[424123364,1780604777000,1000.0,0.00030137,120]
[424123365,1780604782000,166.73650941,0.00015,3]
[424123366,1780604833000,1200.0,0.000143,5]
[424123367,1780604835000,2400.0,0.000144,5]
[424123368,1780604837000,3700.0,0.000145,5]
[424123369,1780604839000,4900.0,0.000146,5]
[424123370,1780604842000,6200.0,0.000147,5]
[424123371,1780604844000,1200.0,0.000148,5]
[424123372,1780604846000,1200.0,0.000149,5]
[424123373,1780604857000,948.1794024,0.00014984,7]
[424123374,1780604921000,122.47192722,0.00010647,7]
[424123375,1780604921000,78.03807278,0.00010647,7]
[424123389,1780604932000,-261.39821735,0.00010579,2]
[424123390,1780604932000,-500.0,0.00010579,2]
[424123391,1780604932000,-500.0,0.00010579,2]
[424123388,1780604932000,-500.0,0.00010579,2]
[424123387,1780604932000,-500.0,0.00010579,2]
[424123385,1780604932000,-500.0,0.00010579,2]
[424123384,1780604932000,-500.0,0.00010579,2]
[424123380,1780604932000,-632.03989651,0.00010579,2]
[424123382,1780604932000,-500.0,0.00010579,2]
[424123381,1780604932000,-181.69433625,0.00010579,2]
[424123378,1780604932000,-500.0,0.00010579,2]
[424123377,1780604932000,-150.0,0.00010263,2]
[424123379,1780604932000,-609.85573401,0.00010579,2]
[424123376,1780604932000,-171.7,9.48e-05,2]
[424123392,1780604932000,-376.97977269,0.00010579,2]
[424123383,1780604932000,-505.84533207,0.00010579,2]
[424123393,1780604932000,-500.0,0.00010579,2]
[424123386,1780604932000,-500.0,0.00010579,2]
[424123394,1780604932000,-372.17153806,0.00010579,2]
[424123412,1780604932000,-500.0,0.00010579,2]
[424123411,1780604932000,-500.0,0.00010579,2]
[424123409,1780604932000,-500.0,0.00010579,2]
[424123407,1780604932000,-500.0,0.00010579,2]
[424123408,1780604932000,-500.0,0.00010579,2]
[424123406,1780604932000,-274.88779307,0.00010579,2]
[424123405,1780604932000,-500.0,0.00010579,2]
[424123404,1780604932000,-500.0,0.00010579,2]
[424123395,1780604932000,-500.0,0.00010579,2]
[424123400,1780604932000,-500.0,0.00010579,2]
[424123396,1780604932000,-500.0,0.00010579,2]
[424123398,1780604932000,-500.0,0.00010579,2]
[424123397,1780604932000,-500.0,0.00010579,2]
[424123403,1780604932000,-500.0,0.00010579,2]
[424123402,1780604932000,-500.0,0.00010579,2]
[424123410,1780604932000,-500.0,0.00010579,2]
[424123401,1780604932000,-500.0,0.00010579,2]
[424123399,1780604932000,-500.0,0.00010579,2]
[424123426,1780604933000,-500.0,0.00010579,2]
[424123425,1780604933000,-500.0,0.00010579,2]
[424123423,1780604933000,-500.0,0.00010579,2]
[424123421,1780604933000,-500.0,0.00010579,2]
[424123422,1780604933000,-500.0,0.00010579,2]
[424123420,1780604933000,-500.0,0.00010579,2]
[424123418,1780604933000,-500.0,0.00010579,2]
[424123417,1780604933000,-500.0,0.00010579,2]
[424123424,1780604933000,-500.0,0.00010579,2]
[424123414,1780604933000,-500.0,0.00010579,2]
[424123415,1780604933000,-500.0,0.00010579,2]
[424123413,1780604933000,-500.0,0.00010579,2]
[424123419,1780604933000,-500.0,0.00010579,2]
[424123416,1780604933000,-500.0,0.00010579,2]
[424123427,1780604933000,-500.0,0.00010579,2]
[424123428,1780604933000,-500.0,0.00010579,2]
[424123439,1780604933000,-499.01929766,0.00010659,2]
[424123440,1780604933000,-250.0,0.00010738,2]
[424123429,1780604933000,-184.2571223,0.00010579,2]
[424123441,1780604933000,-398.97396013,0.00010897,2]
[424123437,1780604933000,-200.0,0.00010647,2]
[424123435,1780604933000,-4169.3323867,0.0001058,2]
[424123438,1780604933000,-193.0,0.00010659,2]
[424123434,1780604933000,-500.0,0.00010579,2]
[424123431,1780604933000,-500.0,0.00010579,2]
[424123433,1780604933000,-500.0,0.00010579,2]
[424123430,1780604933000,-500.0,0.00010579,2]
[424123436,1780604933000,-11568.8446132,0.0001058,2]
[424123432,1780604933000,-500.0,0.00010579,2]
[424123443,1780604941000,2000.0,0.00030136,120]
[424123457,1780605031000,-685.37110189,0.00010579,2]
[424123448,1780605031000,-1641.42458806,0.00010525,2]
[424123450,1780605031000,-640.330967,0.00010578,2]
[424123449,1780605031000,-1209.59044994,0.00010525,2]
[424123451,1780605031000,-559.669033,0.00010578,2]
[424123458,1780605031000,-685.37110189,0.00010579,2]
[424123453,1780605031000,-300.0,0.00010578,2]
[424123454,1780605031000,-150.0,0.00010578,2]
[424123452,1780605031000,-300.0,0.00010578,2]
[424123456,1780605031000,-685.37110189,0.00010579,2]
[424123459,1780605031000,-685.37110189,0.00010579,2]
[424123460,1780605031000,-685.37110189,0.00010579,2]
[424123455,1780605031000,-500.0,0.00010579,2]
[424123503,1780605032000,-685.37110189,0.00010579,2]
[424123505,1780605032000,-685.37110189,0.00010579,2]
[424123514,1780605032000,-685.37110189,0.00010579,2]
[424123515,1780605032000,-685.37110189,0.00010579,2]
[424123517,1780605032000,-685.37110189,0.00010579,2]
[424123507,1780605032000,-685.37110189,0.00010579,2]
[424123516,1780605032000,-685.37110189,0.00010579,2]
[424123511,1780605032000,-685.37110189,0.00010579,2]
[424123509,1780605032000,-685.37110189,0.00010579,2]
[424123512,1780605032000,-685.37110189,0.00010579,2]
[424123519,1780605032000,-616.82493042,0.00010579,2]
[424123510,1780605032000,-685.37110189,0.00010579,2]
[424123518,1780605032000,-500.0,0.00010579,2]
[424123520,1780605032000,-500.0,0.00010579,2]
[424123522,1780605032000,-261.47901506,0.00010579,2]
[424123521,1780605032000,-520.5370677,0.00010579,2]
[424123523,1780605032000,-500.0,0.00010579,2]
[424123528,1780605032000,-500.0,0.00010579,2]
[424123525,1780605032000,-500.0,0.00010579,2]
[424123524,1780605032000,-500.0,0.00010579,2]
[424123513,1780605032000,-685.37110189,0.00010579,2]
[424123486,1780605032000,-685.37110189,0.00010579,2]
[424123487,1780605032000,-685.37110189,0.00010579,2]
[424123489,1780605032000,-685.37110189,0.00010579,2]
[424123526,1780605032000,-500.0,0.00010579,2]
[424123461,1780605032000,-685.37110189,0.00010579,2]
[424123462,1780605032000,-685.37110189,0.00010579,2]
[424123464,1780605032000,-685.37110189,0.00010579,2]
[424123477,1780605032000,-685.37110189,0.00010579,2]
[424123474,1780605032000,-685.37110189,0.00010579,2]
[424123476,1780605032000,-685.37110189,0.00010579,2]
[424123479,1780605032000,-685.37110189,0.00010579,2]
[424123463,1780605032000,-685.37110189,0.00010579,2]
[424123466,1780605032000,-685.37110189,0.00010579,2]
[424123471,1780605032000,-685.37110189,0.00010579,2]
[424123467,1780605032000,-685.37110189,0.00010579,2]
[424123472,1780605032000,-685.37110189,0.00010579,2]
[424123469,1780605032000,-685.37110189,0.00010579,2]
[424123473,1780605032000,-685.37110189,0.00010579,2]
[424123481,1780605032000,-685.37110189,0.00010579,2]
[424123494,1780605032000,-685.37110189,0.00010579,2]
[424123495,1780605032000,-685.37110189,0.00010579,2]
[424123498,1780605032000,-685.37110189,0.00010579,2]
[424123500,1780605032000,-685.37110189,0.00010579,2]
[424123484,1780605032000,-685.37110189,0.00010579,2]
[424123488,1780605032000,-685.37110189,0.00010579,2]
[424123527,1780605032000,-500.0,0.00010579,2]
[424123553,1780605032000,-101.02603987,0.00010897,2]
[424123537,1780605032000,-500.0,0.00010579,2]
[424123562,1780605032000,-150.0,0.00011426,2]
[424123560,1780605032000,-3523.7,0.0001135,2]
[424123554,1780605032000,-4149.15776377,0.000109,2]
[424123556,1780605032000,-153.35,0.00011105,2]
[424123557,1780605032000,-500.0,0.00011127,2]
[424123563,1780605032000,-250.0,0.00011578,2]
[424123555,1780605032000,-250.0,0.0001102,2]
[424123558,1780605032000,-500.0,0.00011194,2]
[424123564,1780605032000,-255.0,0.00011604,2]
[424123565,1780605032000,-4181.55,0.00011615,2]
[424123566,1780605032000,-420.0,0.00011629,2]
[424123567,1780605032000,-1680.0,0.00011636,2]
[424123571,1780605032000,-4000.0,0.00011638,2]
[424123576,1780605032000,-200.0,0.00011807,2]
[424123572,1780605032000,-500.0,0.00011638,2]
[424123568,1780605032000,-500.0,0.00011638,2]
[424123573,1780605032000,-164.83,0.00011654,2]
[424123569,1780605032000,-250.0,0.00011638,2]
[424123577,1780605032000,-900.98259182,0.0001185,2]
[424123570,1780605032000,-193.0,0.00011638,2]
[424123530,1780605032000,-500.0,0.00010579,2]
[424123559,1780605032000,-345.71353324,0.00011194,2]
[424123552,1780605032000,-500.0,0.00010853,2]
[424123574,1780605032000,-3332.88,0.00011654,2]
[424123575,1780605032000,-500.0,0.00011675,2]
[424123561,1780605032000,-500.0,0.00011401,2]
[424123531,1780605032000,-500.0,0.00010579,2]
[424123536,1780605032000,-500.0,0.00010579,2]
[424123539,1780605032000,-500.0,0.00010579,2]
[424123538,1780605032000,-500.0,0.00010579,2]
[424123529,1780605032000,-569.0487827,0.00010579,2]
[424123532,1780605032000,-500.0,0.00010579,2]
[424123535,1780605032000,-500.0,0.00010579,2]
[424123534,1780605032000,-500.0,0.00010579,2]
[424123541,1780605032000,-500.0,0.00010579,2]
[424123533,1780605032000,-500.0,0.00010579,2]
[424123546,1780605032000,-500.0,0.00010579,2]
[424123550,1780605032000,-500.0,0.00010579,2]
[424123544,1780605032000,-500.0,0.00010579,2]
[424123542,1780605032000,-500.0,0.00010579,2]
[424123543,1780605032000,-500.0,0.00010579,2]
[424123549,1780605032000,-500.0,0.00010579,2]
[424123540,1780605032000,-500.0,0.00010579,2]
[424123545,1780605032000,-500.0,0.00010579,2]
[424123548,1780605032000,-500.0,0.00010579,2]
[424123547,1780605032000,-500.0,0.00010579,2]
[424123551,1780605032000,-250.0,0.00010579,2]
[424123578,1780605033000,-1099.01740818,0.0001185,2]
[424123580,1780605033000,-3539.73297182,0.00011892,2]
[424123581,1780605033000,-363.58702818,0.00011892,2]
[424123582,1780605033000,-3453.49,0.00011892,2]
[424123583,1780605033000,-1526.46390477,0.00011931,2]
[424123579,1780605033000,-150.0,0.00011892,2]
[424123584,1780605037000,213.85103726,0.00010736,7]
[424123593,1780605039000,-539.90025919,0.00010578,2]
[424123590,1780605039000,-500.0,0.00010578,2]
[424123594,1780605039000,-500.0,0.00010578,2]
[424123591,1780605039000,-492.40375751,0.00010578,2]
[424123592,1780605039000,-500.0,0.00010578,2]
[424123595,1780605039000,-500.0,0.00010578,2]
[424123599,1780605039000,-500.0,0.00010578,2]
[424123596,1780605039000,-500.0,0.00010578,2]
[424123598,1780605039000,-500.0,0.00010578,2]
[424123600,1780605039000,-416.51799928,0.00010578,2]
[424123601,1780605039000,-620.07449136,0.00010578,2]
[424123602,1780605039000,-500.0,0.00010578,2]
[424123597,1780605039000,-500.0,0.00010578,2]
[424123617,1780605040000,-250.0,0.00012453,2]
[424123618,1780605040000,-2432.3,0.00012475,2]
[424123616,1780605040000,-249.05,0.00012438,2]
[424123613,1780605040000,-4183.77469195,0.00012334,2]
[424123614,1780605040000,-261.73,0.00012363,2]
[424123612,1780605040000,320.77655593,0.00011368,7]
[424123611,1780605040000,-95.41530805,0.00012334,2]
[424123609,1780605040000,-500.0,0.00012223,2]
[424123608,1780605040000,-345.62,0.00012171,2]
[424123606,1780605040000,-622.04609523,0.00011931,2]
[424123607,1780605040000,-500.0,0.00011949,2]
[424123604,1780605040000,-500.0,0.00010578,2]
[424123603,1780605040000,-229.31452935,0.00010578,2]
[424123610,1780605040000,-2537.07,0.00012246,2]
[424123605,1780605040000,-500.0,0.00010578,2]
[424123615,1780605040000,-2000.0,0.00012423,2]
[424123625,1780605040000,-164.83,0.00012819,2]
[424123619,1780605040000,-500.0,0.00012497,2]
[424123620,1780605040000,-4278.49,0.00012514,2]
[424123632,1780605040000,-150.0,0.00013488,2]
[424123635,1780605040000,-127.82968295,0.00013488,2]
[424123636,1780605040000,-150.0,0.00013529,2]
[424123633,1780605040000,-150.0,0.00013488,2]
[424123626,1780605040000,-500.0,0.00013045,2]
[424123622,1780605040000,-500.0,0.00012771,2]
[424123634,1780605040000,-22.17031705,0.00013488,2]
[424123621,1780605040000,-433.0,0.00012725,2]
[424123623,1780605040000,-587.0,0.00012784,2]
[424123629,1780605040000,-150.0,0.00013488,2]
[424123628,1780605040000,-2000.0,0.00013331,2]
[424123627,1780605040000,-500.0,0.00013319,2]
[424123624,1780605040000,-2351.0,0.00012799,2]
[424123631,1780605040000,-150.0,0.00013488,2]
[424123630,1780605040000,-150.0,0.00013488,2]
[424123688,1780605041000,-150.0,0.00013987,2]
[424123690,1780605041000,-4442.89061473,0.00014015,2]
[424123694,1780605041000,-6253.10437202,0.00014033,2]
[424123680,1780605041000,-150.0,0.00013946,2]
[424123684,1780605041000,-166.66,0.00013973,2]
[424123667,1780605041000,-1086.133893,0.00013859,2]
[424123676,1780605041000,-5366.89,0.00013904,2]
[424123677,1780605041000,-150.0,0.00013904,2]
[424123671,1780605041000,-150.0,0.00013862,2]
[424123686,1780605041000,-164.83,0.00013985,2]
[424123682,1780605041000,-736.0,0.00013963,2]
[424123696,1780605041000,-489.0,0.00014055,2]
[424123718,1780605041000,-8205.69,0.00014132,2]
[424123698,1780605041000,-150.0,0.0001407,2]
[424123702,1780605041000,-150.0,0.00014087,2]
[424123700,1780605041000,-3292.0,0.00014079,2]
[424123704,1780605041000,-444.77597013,0.000141,2]
[424123706,1780605041000,-388.998386,0.00014106,2]
[424123708,1780605041000,-1005.994115,0.00014106,2]
[424123670,1780605041000,-150.0,0.00013862,2]
[424123722,1780605041000,-4442.89061473,0.00014141,2]
[424123720,1780605041000,-1559.82,0.00014137,2]
[424123710,1780605041000,-166.66,0.0001411,2]
[424123712,1780605041000,-150.0,0.00014112,2]
[424123716,1780605041000,-6253.10437193,0.00014129,2]